[Event "DFMMLV 2024"]
[Site "Braunfels"]
[Date "2024.06.01"]
[Round "4.54"]
[White "Lebioda-Dette, Kordula"]
[Black "Lerch, Cornelia"]
[Result "1-0"]
[ECO "B50"]
[WhiteElo "1821"]
[BlackElo "1847"]
[Annotator "NA RC"]
[PlyCount "75"]
[EventDate "2024.05.30"]
[EventType "team-tourn"]
[EventCountry "GER"]
[SourceTitle "playchess.com"]
[Source "ChessBase"]
[SourceQuality "1"]
[TimeControl "40/5400+30:1800+30"]

1. e4 {[%emt 0:00:03]} c5 {[%emt 0:00:06]} 2. Nf3 {[%emt 0:00:07]} d6 {[%emt 0:00:05]} 3. Be2 {[%emt 0:00:07]} Nf6 {[%emt 0:00:09]} 4. d3 {[%emt 0:00:07]} g6 {[%emt 0:00:12]} 5. O-O {[%emt 0:00:08]} Bg7 {[%emt 0:00:10]} 6. c3 {[%emt 0:00:11]} O-O {[%emt 0:00:18]} 7. Bg5 {[%emt 0:00:13]} Nc6 {[%emt 0:00:22]} 8. h3 {[%emt 0:01:14]} a6 {[%emt 0:01:12]} 9. Nh2 {[%emt 0:00:45]} b5 {[%emt 0:01:06]} 10. Ng4 {[%emt 0:00:25]} Nxg4 {[%emt 0:01:58]} 11. Bxg4 {[%emt 0:00:11]} b4 {[%emt 0:06:15]} 12. Bxc8 {[%emt 0:03:25]} Rxc8 {[%emt 0:00:22]} 13. Qd2 {[%emt 0:03:37]} Rb8 {[%emt 0:03:30]} 14. Bh6 {[%emt 0:05:10]} Bxh6 {[%emt 0:00:49]} 15. Qxh6 {[%emt 0:00:09]} bxc3 {[%emt 0:01:34]} 16. bxc3 {[%emt 0:02:01]} Qa5 {[%emt 0:05:14]} 17. Qc1 {[%emt 0:06:08]} Rfc8 {[%emt 0:06:00]} 18. Nd2 {[%emt 0:08:10]} Ne5 {[%emt 0:00:59]} 19. Qc2 {[%emt 0:13:59]} Qb5 {[%emt 0:11:40]} 20. c4 {[%emt 0:26:25]} Qb2 {[%emt 0:02:31]} 21. Qd1 {[%emt 0:10:18]} Nxd3 {[%emt 0:05:03]} 22. Nb3 {[%emt 0:09:59]} Ne5 {[%emt 0:05:56]} 23. Qd5 {[%emt 0:05:48]} Qa3 {[%emt 0:03:24]} 24. f4 {[%emt 0:00:24]} Nd7 {[%emt 0:02:32]} 25. f5 {[%emt 0:01:05]} Nf6 {[%emt 0:01:10]} 26. Qd3 {[%emt 0:00:14]} Qa4 {[%emt 0:00:54]} 27. fxg6 {[%emt 0:00:31]} fxg6 {[%emt 0:01:12]} 28. Rxf6 {[%emt 0:01:18]} exf6 {[%emt 0:01:11]} 29. Qd5+ {[%emt 0:00:27]} Kg7 {[%emt 0:01:10]} 30. Qxd6 {[%emt 0:01:41]} Qxc4 {[%emt 0:03:33]} 31. Rf1 {[%emt 0:00:28]} Qf7 {[%emt 0:03:24]} 32. e5 {[%emt 0:00:24]} c4 {[%emt 0:01:52]} 33. Nd4 {[%emt 0:00:11]} c3 {[%emt 0:01:19]} 34. Rxf6 {[%emt 0:00:50]} Qxa2 {[%emt 0:03:46]} 35. Qe7+ {[%emt 0:00:35]} Kh8 {[%emt 0:01:00]} 36. Rf7 {[%emt 0:00:18]} Qb1+ {[%emt 0:00:48]} 37. Kh2 {[%emt 0:00:07]} g5 {[%emt 0:00:58]} 38. Qf6+ {[%emt 0:00:13]} 1-0

[Event "DFMMLV 2024"]
[Site "Braunfels"]
[Date "2024.06.02"]
[Round "5.1"]
[White "Klek, Hanna Marie"]
[Black "Rath, Alina"]
[Result "1-0"]
[ECO "B77"]
[WhiteElo "2294"]
[BlackElo "2041"]
[Annotator "RC"]
[PlyCount "109"]
[EventDate "2024.05.30"]
[EventType "team-tourn"]
[EventCountry "GER"]
[SourceTitle "playchess.com"]
[Source "ChessBase"]
[SourceQuality "1"]
[TimeControl "40/5400+30:1800+30"]

1. e4 {[%emt 0:00:03]} c5 {[%emt 0:00:06]} 2. Nf3 {[%emt 0:00:04]} d6 {[%emt 0:00:06]} 3. d4 {[%emt 0:00:05]} cxd4 {[%emt 0:00:06]} 4. Nxd4 {[%emt 0:00:06]} Nf6 {[%emt 0:00:07]} 5. Nc3 {[%emt 0:00:04]} Nc6 {[%emt 0:00:07]} 6. Bc4 {[%emt 0:00:12]} Bd7 {[%emt 0:01:04]} 7. Bb3 {[%emt 0:02:06]} g6 {[%emt 0:00:37]} 8. f3 {[%emt 0:01:32]} Bg7 {[%emt 0:01:40]} 9. Be3 {[%emt 0:00:15]} O-O {[%emt 0:04:03]} 10. Qd2 {[%emt 0:00:39]} Na5 {[%emt 0:01:43]} 11. O-O-O {[%emt 0:00:39]} Nxb3+ {[%emt 0:00:59]} 12. axb3 {[%emt 0:00:08]} a5 {[%emt 0:02:00]} 13. h4 {[%emt 0:12:51]} h5 {[%emt 0:10:07]} 14. g4 {[%emt 0:09:27]} a4 {[%emt 0:04:34]} 15. b4 {[%emt 0:06:52]} Rc8 {[%emt 0:08:56]} 16. gxh5 {[%emt 0:07:35]} Nxh5 {[%emt 0:00:33]} 17. Bh6 {[%emt 0:07:34]} a3 {[%emt 0:07:56]} 18. Bxg7 {[%emt 0:03:51]} axb2+ {[%emt 0:01:37]} 19. Kxb2 {[%emt 0:01:00]} Kxg7 {[%emt 0:00:30]} 20. Rdg1 {[%emt 0:06:36]} e6 {[%emt 0:03:00]} 21. Rg5 {[%emt 0:01:53]} Rh8 {[%emt 0:05:51]} 22. f4 {[%emt 0:05:28]} Qf6 {[%emt 0:05:26]} 23. Nde2 {[%emt 0:08:32]} Bc6 {[%emt 0:06:36]} 24. Qe3 {[%emt 0:01:02]} d5 {[%emt 0:05:40]} 25. e5 {[%emt 0:06:25]} Qe7 {[%emt 0:00:52]} 26. Qd4 {[%emt 0:00:27]} Be8 {[%emt 0:03:19]} 27. f5 {[%emt 0:02:18]} exf5 {[%emt 0:03:28]} 28. Nxd5 {[%emt 0:00:21]} Qe6 {[%emt 0:01:03]} 29. c4 {[%emt 0:02:03]} b5 {[%emt 0:01:27]} 30. c5 {[%emt 0:00:26]} Bc6 {[%emt 0:01:28]} 31. Nec3 {[%emt 0:03:35]} Rcd8 {[%emt 0:00:52]} 32. Rd1 {[%emt 0:00:22]} Rde8 {[%emt 0:03:29]} 33. Nc7 {[%emt 0:02:28]} Qxe5 {[%emt 0:01:47]} 34. Nxe8+ {[%emt 0:00:07]} Rxe8 {[%emt 0:00:08]} 35. Qxe5+ {[%emt 0:00:58]} Rxe5 {[%emt 0:00:05]} 36. Rd6 {[%emt 0:00:41]} Re6 {[%emt 0:00:41]} 37. Rxe6 {[%emt 0:03:43]} fxe6 {[%emt 0:02:31]} 38. Rg1 {[%emt 0:00:10]} f4 {[%emt 0:01:32]} 39. Ra1 {[%emt 0:00:32]} f3 {[%emt 0:01:00]} 40. Nd1 {[%emt 0:00:10]} Nf4 {[%emt 0:01:05]} 41. Ra6 {[%emt 0:35:41]} Nd3+ {[%emt 0:34:54]} 42. Kc3 {[%emt 0:00:49]} Ne5 {[%emt 0:00:12]} 43. Nf2 {[%emt 0:00:00]} Bd5 {[%emt 0:00:00]} 44. Rb6 {[%emt 0:00:00]} Kf6 {[%emt 0:00:00]} 45. Rxb5 {[%emt 0:00:00]} Kf5 {[%emt 0:00:00]} 46. Rb8 {[%emt 0:00:00]} Kf4 {[%emt 0:00:00]} 47. Rf8+ {[%emt 0:00:00]} Ke3 {[%emt 0:00:00]} 48. Nh3 {[%emt 0:00:00]} Nd3 {[%emt 0:00:00]} 49. Rf6 {[%emt 0:00:00]} e5 {[%emt 0:00:00]} 50. c6 {[%emt 0:02:12]} Nf4 {[%emt 0:00:00]} 51. Nxf4 {[%emt 0:00:42]} exf4 {[%emt 0:00:00]} 52. c7 {[%emt 0:00:08]} f2 {[%emt 0:00:00]} 53. c8=Q {[%emt 0:00:19]} f1=Q {[%emt 0:00:00]} 54. Qc5+ {[%emt 0:00:07]} Ke2 {[%emt 0:00:00]} 55. Qb5+ {[%emt 0:00:13]} 1-0

[Event "DFMMLV 2024"]
[Site "Braunfels"]
[Date "2024.06.02"]
[Round "5.2"]
[White "Von Herman, Brigitte"]
[Black "Schneider, Jana"]
[Result "0-1"]
[ECO "C54"]
[WhiteElo "1922"]
[BlackElo "2300"]
[Annotator "RC"]
[PlyCount "102"]
[EventDate "2024.05.30"]
[EventType "team-tourn"]
[EventCountry "GER"]
[SourceTitle "playchess.com"]
[Source "ChessBase"]
[SourceQuality "1"]
[TimeControl "40/5400+30:1800+30"]

1. e4 {[%emt 0:00:02]} e5 {[%emt 0:00:08]} 2. Nf3 {[%emt 0:00:04]} Nc6 {[%emt 0:00:06]} 3. Bc4 {[%emt 0:00:07]} Nf6 {[%emt 0:00:11]} 4. d3 {[%emt 0:00:10]} Bc5 {[%emt 0:00:09]} 5. c3 {[%emt 0:00:15]} a6 {[%emt 0:00:28]} 6. a4 {[%emt 0:00:45]} Ba7 {[%emt 0:00:35]} 7. O-O {[%emt 0:00:26]} d6 {[%emt 0:00:23]} 8. Re1 {[%emt 0:00:39]} Ne7 {[%emt 0:02:00]} 9. d4 {[%emt 0:02:10]} Ng6 {[%emt 0:00:36]} 10. dxe5 {[%emt 0:06:50]} Ng4 {[%emt 0:00:39]} 11. Rf1 {[%emt 0:08:40]} N6xe5 {[%emt 0:05:11]} 12. Nxe5 {[%emt 0:06:18]} Nxe5 {[%emt 0:01:06]} 13. Be2 {[%emt 0:06:28]} Qh4 {[%emt 0:02:15]} 14. Nd2 {[%emt 0:03:28]} O-O {[%emt 0:02:06]} 15. Nf3 {[%emt 0:12:50]} Qxe4 {[%emt 0:01:34]} 16. Nxe5 {[%emt 0:00:25]} dxe5 {[%emt 0:07:12]} 17. Bf3 {[%emt 0:01:24]} Qh4 {[%emt 0:01:12]} 18. g3 {[%emt 0:03:25]} Qf6 {[%emt 0:01:19]} 19. Qe2 {[%emt 0:01:11]} c6 {[%emt 0:05:51]} 20. Bg2 {[%emt 0:02:29]} Be6 {[%emt 0:06:56]} 21. Be3 {[%emt 0:02:12]} Bxe3 {[%emt 0:00:39]} 22. Qxe3 {[%emt 0:00:05]} Bd5 {[%emt 0:01:34]} 23. Rfe1 {[%emt 0:00:50]} Bxg2 {[%emt 0:00:45]} 24. Kxg2 {[%emt 0:00:04]} Rfe8 {[%emt 0:00:30]} 25. Rad1 {[%emt 0:00:14]} Rad8 {[%emt 0:05:42]} 26. Qb6 {[%emt 0:09:31]} Rxd1 {[%emt 0:03:17]} 27. Rxd1 {[%emt 0:00:06]} Qe7 {[%emt 0:04:17]} 28. b4 {[%emt 0:01:56]} e4 {[%emt 0:02:29]} 29. Qd4 {[%emt 0:03:46]} h6 {[%emt 0:05:05]} 30. Re1 {[%emt 0:03:22]} Kh7 {[%emt 0:02:57]} 31. Qc4 {[%emt 0:06:59]} f5 {[%emt 0:11:02]} 32. b5 {[%emt 0:01:49]} axb5 {[%emt 0:03:41]} 33. axb5 {[%emt 0:00:07]} Qf6 {[%emt 0:02:31]} 34. Re3 {[%emt 0:07:48]} Qg6 {[%emt 0:03:19]} 35. f3 {[%emt 0:02:54]} cxb5 {[%emt 0:07:13]} 36. Qd5 {[%emt 0:03:35]} Qg5 {[%emt 0:03:08]} 37. f4 {[%emt 0:01:32]} Rd8 {[%emt 0:00:50]} 38. Qxb5 {[%emt 0:00:48]} Qh5 {[%emt 0:01:30]} 39. Qb2 {[%emt 0:02:38]} Qd1 {[%emt 0:00:50]} 40. Re2 {[%emt 0:00:49]} Qd3 {[%emt 0:01:18]} 41. Kh3 {[%emt 0:05:23]} Rd7 {[%emt 0:05:06]} 42. Rc2 {[%emt 0:05:06]} Qf1+ {[%emt 0:05:13]} 43. Rg2 {[%emt 0:03:06]} g5 {[%emt 0:00:55]} 44. Qa2 {[%emt 0:04:44]} Qf3 {[%emt 0:05:23]} 45. Rf2 {[%emt 0:02:12]} g4+ {[%emt 0:07:22]} 46. Kh4 {[%emt 0:00:06]} Qd3 {[%emt 0:00:10]} 47. Qe6 {[%emt 0:03:04]} Qd5 {[%emt 0:00:19]} 48. Qe8 {[%emt 0:02:49]} Rg7 {[%emt 0:02:12]} 49. c4 {[%emt 0:02:10]} Qd6 {[%emt 0:01:33]} 50. Qc8 {[%emt 0:01:02]} Qf6+ {[%emt 0:00:28]} 51. Kh5 {[%emt 0:00:06]} Rg5+ {[%emt 0:00:15]} 0-1

[Event "DFMMLV 2024"]
[Site "Braunfels"]
[Date "2024.06.02"]
[Round "5.3"]
[White "Hrebenshchykova, Yelyzaveta"]
[Black "Skogvall, Martina"]
[Result "1-0"]
[ECO "B12"]
[WhiteElo "2272"]
[BlackElo "1952"]
[Annotator "RC"]
[PlyCount "71"]
[EventDate "2024.05.30"]
[EventType "team-tourn"]
[EventCountry "GER"]
[SourceTitle "playchess.com"]
[Source "ChessBase"]
[SourceQuality "1"]
[TimeControl "40/5400+30:1800+30"]

1. e4 {[%emt 0:00:02]} c6 {[%emt 0:00:07]} 2. d4 {[%emt 0:00:22]} d5 {[%emt 0:00:06]} 3. e5 {[%emt 0:00:05]} Bf5 {[%emt 0:00:04]} 4. h4 {[%emt 0:02:21]} Qb6 {[%emt 0:01:31]} 5. Nc3 {[%emt 0:23:48]} h5 {[%emt 0:02:20]} 6. Be2 {[%emt 0:02:47]} Bg4 {[%emt 0:11:56]} 7. Bxg4 {[%emt 0:03:21]} hxg4 {[%emt 0:00:10]} 8. Qxg4 {[%emt 0:10:40]} e6 {[%emt 0:00:25]} 9. Nf3 {[%emt 0:00:20]} Nd7 {[%emt 0:05:34]} 10. O-O {[%emt 0:02:49]} c5 {[%emt 0:13:26]} 11. dxc5 {[%emt 0:01:49]} Nxc5 {[%emt 0:05:50]} 12. Na4 {[%emt 0:07:01]} Nxa4 {[%emt 0:02:58]} 13. Qxa4+ {[%emt 0:00:03]} Qc6 {[%emt 0:00:14]} 14. Qxc6+ {[%emt 0:04:00]} bxc6 {[%emt 0:00:41]} 15. c4 {[%emt 0:00:44]} Ne7 {[%emt 0:05:36]} 16. cxd5 {[%emt 0:03:13]} cxd5 {[%emt 0:00:27]} 17. Bd2 {[%emt 0:09:20]} Nf5 {[%emt 0:01:03]} 18. g3 {[%emt 0:03:27]} Bc5 {[%emt 0:01:33]} 19. Rfc1 {[%emt 0:00:21]} Bb6 {[%emt 0:01:05]} 20. Kg2 {[%emt 0:00:10]} Kd7 {[%emt 0:00:33]} 21. a4 {[%emt 0:06:56]} Rab8 {[%emt 0:09:48]} 22. b4 {[%emt 0:04:27]} Nd4 {[%emt 0:01:29]} 23. Rab1 {[%emt 0:00:30]} Rhc8 {[%emt 0:07:54]} 24. b5 {[%emt 0:00:18]} Nxf3 {[%emt 0:01:20]} 25. Kxf3 {[%emt 0:00:04]} Bd4 {[%emt 0:01:21]} 26. Be3 {[%emt 0:11:24]} Bb6 {[%emt 0:05:48]} 27. h5 {[%emt 0:00:20]} Ke7 {[%emt 0:06:00]} 28. Rxc8 {[%emt 0:00:48]} Rxc8 {[%emt 0:00:10]} 29. Rc1 {[%emt 0:00:07]} Rxc1 {[%emt 0:05:46]} 30. Bxc1 {[%emt 0:00:03]} f6 {[%emt 0:01:22]} 31. Bb2 {[%emt 0:00:31]} d4 {[%emt 0:03:18]} 32. exf6+ {[%emt 0:00:47]} gxf6 {[%emt 0:01:50]} 33. g4 {[%emt 0:00:09]} e5 {[%emt 0:00:57]} 34. Ke4 {[%emt 0:00:45]} d3 {[%emt 0:02:11]} 35. Kxd3 {[%emt 0:00:20]} Bxf2 {[%emt 0:00:07]} 36. Bc1 {[%emt 0:00:10]} 1-0

[Event "DFMMLV 2024"]
[Site "Braunfels"]
[Date "2024.06.02"]
[Round "5.4"]
[White "Fock, Amina"]
[Black "Bardorz, Jana"]
[Result "0-1"]
[ECO "B55"]
[WhiteElo "1932"]
[BlackElo "2051"]
[Annotator "NA RC"]
[PlyCount "138"]
[EventDate "2024.05.30"]
[EventType "team-tourn"]
[EventCountry "GER"]
[SourceTitle "playchess.com"]
[Source "ChessBase"]
[SourceQuality "1"]
[TimeControl "40/5400+30:1800+30"]

1. e4 {[%emt 0:00:03]} c5 {[%emt 0:00:20]} 2. Nf3 {[%emt 0:00:10]} d6 {[%emt 0:00:12]} 3. d4 {[%emt 0:00:12]} cxd4 {[%emt 0:00:07]} 4. Nxd4 {[%emt 0:00:07]} Nf6 {[%emt 0:00:07]} 5. f3 {[%emt 0:00:09]} e5 {[%emt 0:00:53]} 6. Nb3 {[%emt 0:00:39]} Be6 {[%emt 0:02:02]} 7. c4 {[%emt 0:00:39]} Nbd7 {[%emt 0:09:04]} 8. Be3 {[%emt 0:02:57]} Rc8 {[%emt 0:01:32]} 9. Nc3 {[%emt 0:12:41]} a6 {[%emt 0:10:38]} 10. Nd5 {[%emt 0:02:12]} Bxd5 {[%emt 0:10:05]} 11. cxd5 {[%emt 0:00:14]} g6 {[%emt 0:06:32]} 12. Qd2 {[%emt 0:02:14]} Bg7 {[%emt 0:05:22]} 13. Be2 {[%emt 0:06:20]} O-O {[%emt 0:05:31]} 14. O-O {[%emt 0:02:39]} Qe7 {[%emt 0:03:05]} 15. Rfc1 {[%emt 0:02:56]} Nh5 {[%emt 0:02:39]} 16. Na5 {[%emt 0:03:00]} f5 {[%emt 0:06:57]} 17. exf5 {[%emt 0:19:20]} gxf5 {[%emt 0:00:19]} 18. Nxb7 {[%emt 0:05:56]} f4 {[%emt 0:04:47]} 19. Bf2 {[%emt 0:00:58]} Ndf6 {[%emt 0:01:05]} 20. Na5 {[%emt 0:04:17]} e4 {[%emt 0:02:17]} 21. Bh4 {[%emt 0:07:21]} Qf7 {[%emt 0:04:46]} 22. Rxc8 {[%emt 0:03:56]} Rxc8 {[%emt 0:00:10]} 23. fxe4 {[%emt 0:00:31]} Nxe4 {[%emt 0:03:34]} 24. Qd1 {[%emt 0:01:30]} Nhf6 {[%emt 0:03:35]} 25. Bc4 {[%emt 0:02:41]} Qa7+ {[%emt 0:04:04]} 26. Kh1 {[%emt 0:01:31]} Nf2+ {[%emt 0:02:13]} 27. Bxf2 {[%emt 0:00:07]} Qxf2 {[%emt 0:00:04]} 28. Nc6 {[%emt 0:02:50]} Re8 {[%emt 0:00:49]} 29. Qf1 {[%emt 0:01:43]} Qh4 {[%emt 0:02:28]} 30. Kg1 {[%emt 0:02:41]} Re3 {[%emt 0:07:36]} 31. Qf2 {[%emt 0:02:00]} Qxf2+ {[%emt 0:00:10]} 32. Kxf2 {[%emt 0:00:04]} Ne4+ {[%emt 0:00:24]} 33. Kg1 {[%emt 0:00:11]} Bxb2 {[%emt 0:01:01]} 34. Rd1 {[%emt 0:04:13]} Ba3 {[%emt 0:00:37]} 35. Ne7+ {[%emt 0:02:11]} Kf7 {[%emt 0:01:32]} 36. Nf5 {[%emt 0:00:06]} Rc3 {[%emt 0:00:30]} 37. Bxa6 {[%emt 0:00:18]} Bc5+ {[%emt 0:00:19]} 38. Kf1 {[%emt 0:03:34]} Rc2 {[%emt 0:00:34]} 39. Be2 {[%emt 0:01:26]} Rxa2 {[%emt 0:00:30]} 40. Nh4 {[%emt 0:01:22]} Nc3 {[%emt 0:01:04]} 41. Re1 {[%emt 0:05:22]} Nxd5 {[%emt 0:09:09]} 42. Nf5 {[%emt 0:04:57]} Kf6 {[%emt 0:03:12]} 43. Bg4 {[%emt 0:05:15]} f3 {[%emt 0:03:04]} 44. gxf3 {[%emt 0:06:34]} Rf2+ {[%emt 0:02:11]} 45. Kg1 {[%emt 0:00:07]} Rxf3+ {[%emt 0:00:20]} 46. Kh1 {[%emt 0:02:24]} Rxf5 {[%emt 0:00:19]} 47. Bxf5 {[%emt 0:01:21]} Kxf5 {[%emt 0:00:05]} 48. Kg2 {[%emt 0:00:26]} Nf4+ {[%emt 0:02:23]} 49. Kf3 {[%emt 0:01:25]} Ng6 {[%emt 0:00:16]} 50. Re8 {[%emt 0:02:04]} Ne5+ {[%emt 0:03:26]} 51. Kg3 {[%emt 0:01:51]} Nd7 {[%emt 0:01:10]} 52. Kf3 {[%emt 0:01:22]} Nf6 {[%emt 0:00:10]} 53. Rc8 {[%emt 0:00:25]} Bd4 {[%emt 0:00:49]} 54. Rc4 {[%emt 0:01:05]} Be5 {[%emt 0:00:06]} 55. h3 {[%emt 0:02:03]} d5 {[%emt 0:02:42]} 56. Rc5 {[%emt 0:01:18]} d4 {[%emt 0:00:57]} 57. Rb5 {[%emt 0:00:17]} Ne4 {[%emt 0:01:55]} 58. Rb7 {[%emt 0:01:18]} d3 {[%emt 0:04:27]} 59. Ke3 {[%emt 0:00:52]} d2 {[%emt 0:00:33]} 60. Ke2 {[%emt 0:00:37]} Bf4 {[%emt 0:01:05]} 61. Rb3 {[%emt 0:00:42]} Nf2 {[%emt 0:02:11]} 62. Rb1 {[%emt 0:00:26]} Nxh3 {[%emt 0:00:22]} 63. Rh1 {[%emt 0:00:22]} Ng5 {[%emt 0:00:15]} 64. Kd1 {[%emt 0:00:40]} Ne4 {[%emt 0:00:19]} 65. Rf1 {[%emt 0:00:24]} h5 {[%emt 0:00:28]} 66. Kc2 {[%emt 0:00:09]} h4 {[%emt 0:00:14]} 67. Kd3 {[%emt 0:00:22]} Nf2+ {[%emt 0:00:52]} 68. Ke2 {[%emt 0:00:13]} d1=Q+ {[%emt 0:00:12]} 69. Rxd1 {[%emt 0:00:06]} Nxd1 {[%emt 0:00:03]} 0-1

[Event "DFMMLV 2024"]
[Site "Braunfels"]
[Date "2024.06.02"]
[Round "5.5"]
[White "Vidonyak, Nellya"]
[Black "Guder, Sibylle"]
[Result "1-0"]
[ECO "B07"]
[WhiteElo "2098"]
[BlackElo "1933"]
[Annotator "RC"]
[PlyCount "97"]
[EventDate "2024.05.30"]
[EventType "team-tourn"]
[EventCountry "GER"]
[SourceTitle "playchess.com"]
[Source "ChessBase"]
[SourceQuality "1"]
[TimeControl "40/5400+30:1800+30"]

1. d4 {[%emt 0:00:03]} Nf6 {[%emt 0:00:05]} 2. Nf3 {[%emt 0:00:10]} g6 {[%emt 0:00:13]} 3. Nbd2 {[%emt 0:00:15]} Bg7 {[%emt 0:00:21]} 4. e4 {[%emt 0:00:13]} d6 {[%emt 0:00:07]} 5. Bc4 {[%emt 0:00:41]} O-O {[%emt 0:03:29]} 6. O-O {[%emt 0:00:19]} Nc6 {[%emt 0:00:44]} 7. c3 {[%emt 0:00:21]} e5 {[%emt 0:02:20]} 8. Re1 {[%emt 0:01:34]} h6 {[%emt 0:08:41]} 9. dxe5 {[%emt 0:04:39]} Nxe5 {[%emt 0:02:57]} 10. Nxe5 {[%emt 0:04:16]} dxe5 {[%emt 0:00:20]} 11. Qb3 {[%emt 0:03:52]} c6 {[%emt 0:05:50]} 12. a4 {[%emt 0:11:32]} Qe7 {[%emt 0:09:23]} 13. Nf1 {[%emt 0:00:57]} Kh7 {[%emt 0:11:37]} 14. f3 {[%emt 0:03:33]} Nh5 {[%emt 0:05:50]} 15. Kh1 {[%emt 0:10:13]} Nf4 {[%emt 0:04:18]} 16. Bxf4 {[%emt 0:07:38]} exf4 {[%emt 0:00:23]} 17. e5 {[%emt 0:11:11]} Bxe5 {[%emt 0:08:30]} 18. Bxf7 {[%emt 0:01:59]} Qxf7 {[%emt 0:00:21]} 19. Qxf7+ {[%emt 0:00:05]} Rxf7 {[%emt 0:00:04]} 20. Rxe5 {[%emt 0:00:05]} Bf5 {[%emt 0:00:51]} 21. Rd1 {[%emt 0:02:08]} Kg7 {[%emt 0:02:03]} 22. Rd4 {[%emt 0:01:34]} Kf6 {[%emt 0:09:51]} 23. Re1 {[%emt 0:03:11]} g5 {[%emt 0:02:34]} 24. Rd6+ {[%emt 0:00:19]} Kg7 {[%emt 0:00:06]} 25. Nd2 {[%emt 0:00:45]} Raf8 {[%emt 0:00:15]} 26. Nc4 {[%emt 0:05:08]} Rf6 {[%emt 0:05:01]} 27. Kg1 {[%emt 0:04:28]} R8f7 {[%emt 0:01:11]} 28. Kf2 {[%emt 0:00:40]} Bc2 {[%emt 0:02:41]} 29. Rd8 {[%emt 0:04:38]} Rf8 {[%emt 0:05:44]} 30. Rd7+ {[%emt 0:01:32]} R8f7 {[%emt 0:02:04]} 31. Rd2 {[%emt 0:03:02]} Bg6 {[%emt 0:02:13]} 32. h4 {[%emt 0:01:59]} Kf8 {[%emt 0:01:30]} 33. Rd8+ {[%emt 0:01:06]} Kg7 {[%emt 0:00:09]} 34. Nd6 {[%emt 0:02:21]} Rc7 {[%emt 0:01:06]} 35. hxg5 {[%emt 0:01:44]} hxg5 {[%emt 0:00:23]} 36. Re5 {[%emt 0:02:28]} Kh6 {[%emt 0:01:36]} 37. Re1 {[%emt 0:02:17]} Kg7 {[%emt 0:00:16]} 38. a5 {[%emt 0:02:18]} a6 {[%emt 0:00:52]} 39. b4 {[%emt 0:01:46]} Kh7 {[%emt 0:02:08]} 40. c4 {[%emt 0:01:40]} Kg7 {[%emt 0:00:34]} 41. c5 {[%emt 0:30:19]} Kh6 {[%emt 0:18:56]} 42. Rh8+ {[%emt 0:00:00]} Kg7 {[%emt 0:00:16]} 43. Rb8 {[%emt 0:00:00]} Rf8 {[%emt 0:05:48]} 44. Rxf8 {[%emt 0:00:00]} Kxf8 {[%emt 0:00:05]} 45. Re5 {[%emt 0:00:00]} g4 {[%emt 0:01:44]} 46. fxg4 {[%emt 0:00:00]} Kg7 {[%emt 0:01:41]} 47. Kf3 {[%emt 0:00:00]} Kf6 {[%emt 0:01:02]} 48. Kxf4 {[%emt 0:00:00]} Rh7 {[%emt 0:00:18]} 49. g5+ {[%emt 0:00:00]} 1-0

[Event "DFMMLV 2024"]
[Site "Braunfels"]
[Date "2024.06.02"]
[Round "5.6"]
[White "Mazurtsova, Margarita"]
[Black "Wagner, Margarethe"]
[Result "0-1"]
[ECO "A17"]
[WhiteElo "1779"]
[BlackElo "2011"]
[Annotator "RC"]
[PlyCount "104"]
[EventDate "2024.05.30"]
[EventType "team-tourn"]
[EventCountry "GER"]
[SourceTitle "playchess.com"]
[Source "ChessBase"]
[SourceQuality "1"]
[TimeControl "40/5400+30:1800+30"]

1. c4 {[%emt 0:00:23]} e6 {[%emt 0:00:07]} 2. Nf3 {[%emt 0:00:33]} d5 {[%emt 0:00:12]} 3. e3 {[%emt 0:00:46]} Nf6 {[%emt 0:01:02]} 4. Nc3 {[%emt 0:01:35]} Bd6 {[%emt 0:03:40]} 5. b3 {[%emt 0:02:16]} b6 {[%emt 0:01:14]} 6. g3 {[%emt 0:00:10]} Bb7 {[%emt 0:02:21]} 7. Bg2 {[%emt 0:00:57]} a6 {[%emt 0:04:05]} 8. O-O {[%emt 0:01:33]} O-O {[%emt 0:00:32]} 9. Bb2 {[%emt 0:05:32]} Nbd7 {[%emt 0:03:11]} 10. Qe2 {[%emt 0:03:29]} Re8 {[%emt 0:05:51]} 11. cxd5 {[%emt 0:04:38]} exd5 {[%emt 0:02:13]} 12. d4 {[%emt 0:00:33]} Rc8 {[%emt 0:11:01]} 13. Rfd1 {[%emt 0:09:23]} Qe7 {[%emt 0:08:29]} 14. Rac1 {[%emt 0:13:02]} g6 {[%emt 0:04:09]} 15. Qc2 {[%emt 0:08:35]} Nf8 {[%emt 0:08:59]} 16. Ne1 {[%emt 0:09:28]} Ne6 {[%emt 0:14:15]} 17. Qe2 {[%emt 0:04:30]} Ng5 {[%emt 0:03:56]} 18. Nd3 {[%emt 0:01:47]} Nge4 {[%emt 0:06:27]} 19. Nxe4 {[%emt 0:00:40]} Nxe4 {[%emt 0:00:05]} 20. Ne5 {[%emt 0:02:19]} f5 {[%emt 0:04:09]} 21. f4 {[%emt 0:02:23]} Ra8 {[%emt 0:03:38]} 22. Bxe4 {[%emt 0:02:29]} fxe4 {[%emt 0:00:27]} 23. Qg4 {[%emt 0:00:32]} Bc8 {[%emt 0:01:21]} 24. Qe2 {[%emt 0:00:17]} Kg7 {[%emt 0:01:43]} 25. Rc6 {[%emt 0:02:06]} Bb7 {[%emt 0:00:39]} 26. Rc2 {[%emt 0:00:19]} Qe6 {[%emt 0:02:33]} 27. Rdc1 {[%emt 0:00:50]} Rec8 {[%emt 0:00:12]} 28. Kg2 {[%emt 0:01:03]} Kg8 {[%emt 0:06:49]} 29. Rf1 {[%emt 0:01:40]} Rf8 {[%emt 0:00:27]} 30. Rfc1 {[%emt 0:00:13]} Rac8 {[%emt 0:00:21]} 31. h3 {[%emt 0:01:38]} Rfe8 {[%emt 0:00:55]} 32. Rf1 {[%emt 0:00:29]} Rf8 {[%emt 0:00:33]} 33. Kh2 {[%emt 0:00:53]} Rce8 {[%emt 0:00:31]} 34. g4 {[%emt 0:00:53]} Re7 {[%emt 0:00:35]} 35. Qg2 {[%emt 0:00:43]} Rg7 {[%emt 0:00:08]} 36. Rg1 {[%emt 0:01:23]} Kh8 {[%emt 0:00:31]} 37. Qg3 {[%emt 0:00:59]} a5 {[%emt 0:00:28]} 38. Qh4 {[%emt 0:02:12]} Ba6 {[%emt 0:00:21]} 39. Rc6 {[%emt 0:00:15]} Bb5 {[%emt 0:00:20]} 40. Rc2 {[%emt 0:00:49]} Qf6 {[%emt 0:00:13]} 41. g5 {[%emt 0:33:03]} Qe6 {[%emt 0:04:24]} 42. Rgc1 {[%emt 0:00:00]} a4 {[%emt 0:08:38]} 43. bxa4 {[%emt 0:00:00]} Bxa4 {[%emt 0:00:08]} 44. Rc3 {[%emt 0:00:00]} Bxe5 {[%emt 0:02:10]} 45. dxe5 {[%emt 0:00:00]} c5 {[%emt 0:00:12]} 46. Ra3 {[%emt 0:00:00]} Bb5 {[%emt 0:02:34]} 47. Qh6 {[%emt 0:00:00]} Bc4 {[%emt 0:12:00]} 48. Rcc3 {[%emt 0:00:00]} Kg8 {[%emt 0:00:58]} 49. Qh4 {[%emt 0:00:00]} Rgf7 {[%emt 0:00:49]} 50. Qe1 {[%emt 0:00:00]} d4 {[%emt 0:01:15]} 51. Rc2 {[%emt 0:00:00]} dxe3 {[%emt 0:00:52]} 52. Qxe3 {[%emt 0:00:00]} Rxf4 {[%emt 0:00:24]} 0-1